Cogmind - Beta 11 X7 @@@ ROGUE MODE // 2021.08.24 @ 04:43:54 // AFD2020/Player2 Player: PhenomPhear Result: Core destroyed Performance ------------- Evolutions (2) 1000 Regions Visited (5) 1000 Robots Destroyed (74) 370 Value Destroyed (2629) 2629 Prototype IDs (30) 600 Alien Tech Used (0) 0 Bonus (2622) 2622 TOTAL SCORE: 8221 Bonus ------- Triggered High Security 500 High Alert Combat Kills 1183 Follower Combat Kills 1293 Aligned with FarCom 300 Friendly Fire -654 Cogmind --------- Core Integrity 0/550 Matter 300/300 Energy 150/150 System Corruption 0% Temperature Cool (0) Movement Walking (180) Ox1 Location -8/Materials Parts ------- > --- POWER (1) -------- Micro Nuclear Core > --- PROPULSION (4) --- Armored Treads Medium Treads Potential Leg Potential Leg > --- UTILITY (3) ------ High-capacity Storage Unit Signal Interpreter Hardened Medium Armor Plating > --- WEAPON (3) ------- Beam Rifle Advanced EMP Blaster Enhanced Flamer > --- INVENTORY (20) --- Micro Nuclear Core Improved VTOL Module Improved VTOL Module Improved VTOL Module Improved VTOL Module Improved VTOL Module High-capacity Storage Unit Machine Analyzer Experimental Sensor Array Cloak of Protection Hacking Suite Hacking Suite System Shield Advanced EMP Blaster Advanced EMP Blaster Advanced EMP Blaster Rocket Launcher Mini Grenade Launcher Mini Grenade Launcher Katana Peak State ------------ > --- POWER ------------ Micro Nuclear Core > --- PROPULSION ------- Armored Treads Medium Treads Potential Leg Potential Leg > --- UTILITY ---------- High-capacity Storage Unit Signal Interpreter Hardened Medium Armor Plating > --- WEAPON ----------- AWS/Autocannon > --- INVENTORY -------- Improved VTOL Module Improved VTOL Module Improved VTOL Module Improved VTOL Module Improved VTOL Module High-capacity Storage Unit Machine Analyzer Experimental Sensor Array Cloak of Protection Utility Shielding Hacking Suite Hacking Suite System Shield Rocket Launcher Mini Grenade Launcher Mini Grenade Launcher Enhanced Flamer Katana [Rating: 72] Favorites ----------- Power Ion Engine Engine Ion Engine Power Core Micro Nuclear Core Propulsion Potential Leg Treads Armored Treads Leg Potential Leg Wheel Wheel Flight Unit Improved VTOL Module Utility High-capacity Storage Unit Storage High-capacity Storage Unit Processor Signal Interpreter Protection Light Armor Plating Weapon AWS/Autocannon Energy Gun EM Pulse Gun Ballistic Gun Assault Rifle Ballistic Cannon AWS/Autocannon Launcher Rocket Launcher Special Weapon Enhanced Flamer Build | -11 -10 -10 -10 -9 -8 ------- Run | Scr Mat Min Exi Min Mat Slots Evolved 4 | . . . . . 4 Power . | . . . . . . Propulsion 2 | . . . . . 2 Utility 1 | . . . . . 1 Weapon 1 | . . . . . 1 Parts Attached 36 | 6 3 2 4 2 19 Power 3 | 1 . . . . 2 Engine 2 | 1 . . . . 1 Core 1 | . . . . . 1 Reactor . | . . . . . . Propulsion 9 | 2 . . 2 . 5 Treads 3 | . . . . . 3 Leg 3 | . . . 2 . 1 Wheel 2 | 2 . . . . . Hover . | . . . . . . Flight 1 | . . . . . 1 Utility 8 | 1 2 1 . 1 3 Device . | . . . . . . Storage 2 | 1 1 . . . . Processor 1 | . . . . . 1 Hackware . | . . . . . . Protection 5 | . 1 1 . 1 2 Artifact . | . . . . . . Weapon 16 | 2 1 1 2 1 9 Energy Gun 7 | 2 . 1 1 1 2 Energy Cannon . | . . . . . . Ballistic Gun 2 | . 1 . . . 1 Ballistic Cannon 2 | . . . . . 2 Launcher 4 | . . . 1 . 3 Special Weapon 1 | . . . . . 1 Impact Weapon . | . . . . . . Slashing Weapon . | . . . . . . Piercing Weapon . | . . . . . . Special Melee Weapon . | . . . . . . Unidentified Prototypes 2 | . . . . . 2 Parts Lost 1 | . . . 1 . . Power . | . . . . . . Propulsion . | . . . . . . Utility 1 | . . . 1 . . Weapon . | . . . . . . Highest Loss Streak 1 | . . . 1 . . Average Slot Usage (%) 88 | . 99 100 95 94 79 Engine 9 | . 14 14 14 14 5 Core 1 | . . . . . 3 Treads 7 | . . . . . 13 Leg 13 | . . . 17 28 19 Wheel 9 | . 28 28 10 . . Storage 11 | . 14 14 14 14 9 Processor 4 | . . . . . 9 Protection 10 | . 13 14 9 9 8 Energy Gun 7 | . 16 14 14 18 1 Ballistic Gun 4 | . 11 14 8 . . Ballistic Cannon 4 | . . . . . 8 Launcher 1 | . . . 5 9 . Naked Turns . | . . . . . . Heaviest Build 114 | 14 52 55 57 57 114 Greatest Support 77 | 26 26 26 60 60 77 Greatest Overweight (x) 2 | . 1 2 2 . 2 Average Overweight (x) . | . . 1 . . . Largest Inventory Capacity 20 | 8 20 20 20 20 20 Average Capacity 19 | 6 16 20 20 20 20 Most Carried 20 | 2 11 16 20 20 20 Average Carried 16 | . 9 12 18 19 18 Final Capacity 20 | 8 20 20 20 20 20 Final Carried 20 | 2 11 16 19 20 20 Class Distribution -------------------- 50% | Skirmisher 49% | Mutant Dominant Class ---------------- Mutant | -10/Materials Mutant | -10/Mines Mutant | -10/Exiles Mutant | -9/Mines Skirmisher | -8/Materials Resources | -11 -10 -10 -10 -9 -8 ----------- Run | Scr Mat Min Exi Min Mat Matter Collected 786 | 101 252 19 . 71 343 Remotely . | . . . . . . Salvage Created 1945 | . 243 42 96 21 1543 Parts 123 | . 24 5 6 . 88 Haulers Intercepted 2 | . 1 . . . 1 Recyclers Shooed 1 | . . 1 . . . Parts Field Recycled . | . . . . . . Retrieved Matter . | . . . . . . Parts Self-Destructed . | . . . . . . Prevented . | . . . . . . Kills | -11 -10 -10 -10 -9 -8 ------- Run | Scr Mat Min Exi Min Mat Combat Hostiles Destroyed 59 | . 4 3 6 1 45 Guns 10 | . 4 3 . 1 2 Cannons 34 | . . . . . 34 AOE 14 | . . . 6 . 8 Classes Destroyed 16 | . 7 . 1 1 7 Worker 3 | . . . . . 3 Builder 1 | . 1 . . . . Tunneler 1 | . 1 . . . . Hauler 2 | . 1 . . . 1 Mechanic 1 | . . . . . 1 Operator 4 | . 1 . . . 3 Watcher 3 | . 1 . . . 2 Swarmer 9 | . 1 3 . . 5 Grunt 28 | . 3 . 5 . 20 Brawler 2 | . . . . . 2 Duelist 5 | . . . . . 5 Protector 4 | . . . . . 4 Sentry 6 | . . . . . 6 Demolisher 1 | . . . . 1 . Hunter 3 | . . . 1 . 2 Heavy 1 | . . . . . 1 Best Kill Streak 8 | . 2 3 6 1 8 Combat Bots Only 7 | . 2 3 6 1 7 Max Kills in Single Turn 4 | . 1 2 1 1 4 Gunslinging . | . . . . . . Exploded 3 | . . . 1 . 3 Melee . | . . . . . . Uniques/NPCs Destroyed . | . . . . . . Combat | -11 -10 -10 -10 -9 -8 -------- Run | Scr Mat Min Exi Min Mat Damage Taken 2124 | . 215 22 257 24 1606 Core 241 | . 20 4 42 . 175 Absorbed by Shields . | . . . . . . Core Remaining (%) 72 | 100 . . . 44 . Volleys Fired 63 | . 26 3 8 3 23 Largest 3 | . 2 2 1 2 3 Hottest 192 | . 80 60 75 115 192 Shots Fired 248 | . 52 6 8 5 177 Gun 89 | . 52 6 1 5 25 Cannon 137 | . . . . . 137 Launcher 19 | . . . 7 . 12 Special 3 | . . . . . 3 Kinetic 167 | . 21 3 . . 143 Thermal 18 | . . . 1 3 14 Explosive 9 | . . . 7 . 2 Electromagnetic 54 | . 31 3 . 2 18 Robot Hit Streak 14 | . 5 4 . 2 14 Robot Miss Streak 4 | . 3 1 . 3 4 Penetration Max . | . . . . . . Secondary Targets . | . . . . . . Autonomous 138 | . . . . . 138 Shots Hit Robots 158 | . 31 4 . 2 121 Core Hits 89 | . 13 3 8 1 64 Critical Kills . | . . . . . . Critical Parts Destroyed . | . . . . . . Critical Strikes 17 | . . . . . 17 Burn 1 | . . . . . 1 Blast 16 | . . . . . 16 Melee Attacks . | . . . . . . Impact . | . . . . . . Slashing . | . . . . . . Piercing . | . . . . . . Sneak Attacks . | . . . . . . Combat Hostiles . | . . . . . . Follow-up Attacks . | . . . . . . Damage Inflicted 11578 | . 503 66 347 31 10631 Guns 734 | . 457 66 . 31 180 Cannons 9101 | . . . . . 9101 Explosions 1634 | . 46 . 347 . 1241 Melee . | . . . . . . Ramming 77 | . . . . . 77 Kinetic 9305 | . 131 42 . . 9132 Thermal 615 | . 46 . . 20 549 Explosive 460 | . . . 347 . 113 Electromagnetic 1121 | . 326 24 . 11 760 Impact . | . . . . . . Slashing . | . . . . . . Piercing . | . . . . . . Highest Corruption . | . . . . . . Average Corruption . | . . . . . . Corruption Purged . | . . . . . . Overload Shots . | . . . . . . Overflow Damage 1706 | . . . . . 1706 Projectiles 1670 | . . . . . 1670 Explosions 36 | . . . . . 36 Melee . | . . . . . . Knockbacks 37 | . . . . . 37 Impact . | . . . . . . Kinetic 35 | . . . . . 35 Secondary 2 | . . . . . 2 Self-Inflicted Damage 37 | . . . . . 37 Shots 3 | . . . . . 3 Rammed 4 | . . . . . 4 Targets Rammed 8 | . . . . . 8 Kicked 4 | . . . . . 4 Crushed . | . . . . . . Highest Temperature 280 | . 126 9 42 126 280 Average Temperature 50 | . 29 6 25 56 76 Received Heat Transfer 669 | . 102 . . . 567 Siege Activations . | . . . . . . Robots Corrupted 1 | . . . . . 1 Combat Hostiles 1 | . . . . . 1 Parts Fried . | . . . . . . Impact Corruptions . | . . . . . . Robots Melted . | . . . . . . Combat Hostiles . | . . . . . . Parts Melted . | . . . . . . Heat Transferred 1034 | . 50 . . 37 947 Parts Sabotaged . | . . . . . . Parts Stolen . | . . . . . . Parts Stripped . | . . . . . . Power Chain Reactions 5 | . 1 . . . 4 Missiles Intercepted . | . . . . . . Alert | -11 -10 -10 -10 -9 -8 ------- Run | Scr Mat Min Exi Min Mat Peak Influence 2336 | . 514 260 . 37 2336 Initial 143 | . . 143 . . 14 Average 767 | . 274 185 . 10 1184 Maximum Alert Level 5 | . 2 1 . . 5 Low Security (%) 22 | 100 39 32 . 100 2 Level 1 15 | . 31 67 . . . Level 2 17 | . 28 . . . 19 Level 3 9 | . . . . . 15 Level 4 28 | . . . . . 49 Level 5 1 | . . . . . 2 High Security 5 | . . . . . 9 Max Security . | . . . . . . Squads Dispatched 24 | . 4 . . . 20 Investigation 7 | . 2 . . . 5 Extermination . | . . . . . . Reinforcement 5 | . 2 . . . 3 Assault 12 | . . . . . 12 Garrison . | . . . . . . Intercept . | . . . . . . Construction Impeded 1 | . . . . . 1 Haulers Reinforced . | . . . . . . Active Scanning Responses . | . . . . . . Cargo Convoy Interrupts . | . . . . . . Stealth | -11 -10 -10 -10 -9 -8 --------- Run | Scr Mat Min Exi Min Mat Distress Signals 4 | . 1 . . . 3 Communications Jammed . | . . . . . . Distress Signals . | . . . . . . Times Spotted 123 | . 20 5 3 1 94 Peak Tracking Total 20 | . 5 4 5 1 20 Tactical Retreats 6 | . . . . . 6 Traps | -11 -10 -10 -10 -9 -8 ------- Run | Scr Mat Min Exi Min Mat Traps Triggered 7 | . 2 . . . 5 Indirectly . | . . . . . . Trap Hack Attempts . | . . . . . . Triggered . | . . . . . . Disarmed . | . . . . . . Reprogrammed . | . . . . . . Reused . | . . . . . . Traps Extracted . | . . . . . . Installed . | . . . . . . Triggered . | . . . . . . Machines | -11 -10 -10 -10 -9 -8 ---------- Run | Scr Mat Min Exi Min Mat Machines Disabled 13 | . 3 . 4 . 6 Max in Single Turn 1 | . . . 1 . 1 Garrison Access 1 | . . . . . 1 Machines Sabotaged . | . . . . . . Garrisons Compromised . | . . . . . . Overloaded Fab Kills . | . . . . . . Fab Network Shutdowns . | . . . . . . Hacking | -11 -10 -10 -10 -9 -8 --------- Run | Scr Mat Min Exi Min Mat Machines Accessed 15 | . 7 . 1 . 7 Terminals 12 | . 5 . . . 7 Fabricators . | . . . . . . Repair Stations . | . . . . . . Recycling Units 2 | . 2 . . . . Scanalyzers . | . . . . . . Garrison Access . | . . . . . . Total Hacks 41 | . 22 . 1 . 18 Successful 26 | . 14 . 1 . 11 Failed 15 | . 8 . . . 7 Catastrophic 1 | . . . . . 1 Database Lockouts . | . . . . . . Manual 9 | . 6 . 1 . 2 Terminals 33 | . 15 . . . 18 Fabricators . | . . . . . . Repair Stations . | . . . . . . Recycling Units 7 | . 7 . . . . Scanalyzers . | . . . . . . Garrison Access . | . . . . . . Terminal Hacks 20 | . 8 . 1 . 11 Record 1 | . . . . . 1 Prototype ID Bank 3 | . 1 . . . 2 Alert Level 6 | . 2 . . . 4 Locate Traps 4 | . 1 . . . 3 Dispatch Records 1 | . . . . . 1 Registered Components 1 | . 1 . . . . Zone Layout 3 | . 3 . . . . EX-Prototype ID Bank 1 | . . . 1 . . Fabricator Hacks . | . . . . . . Repair Station Hacks . | . . . . . . Recycling Unit Hacks 2 | . 2 . . . . Retrieve Components 2 | . 2 . . . . Scanalyzer . | . . . . . . Garrison Access Hacks . | . . . . . . Unauthorized Hacks 4 | . 4 . . . . Terminals 2 | . 2 . . . . Botnet 2 | . 2 . . . . Fabricators . | . . . . . . Repair Stations . | . . . . . . Recycling Units 2 | . 2 . . . . Reject 2 | . 2 . . . . Scanalyzers . | . . . . . . Garrison Access . | . . . . . . Data Cores Recovered 3 | . . . . . 3 Used . | . . . . . . Hacking Detections 8 | . 3 . . . 5 Full Trace Events 4 | . . . . . 4 Feedback Events . | . . . . . . Feedback Blocked . | . . . . . . Robot Schematics Acquired . | . . . . . . Robots Built . | . . . . . . Matter . | . . . . . . Time . | . . . . . . Total Robot Build Rating . | . . . . . . Part Schematics Acquired . | . . . . . . Parts Built . | . . . . . . Matter . | . . . . . . Time . | . . . . . . Total Part Build Rating . | . . . . . . Parts Repaired . | . . . . . . Time . | . . . . . . Parts Recycled . | . . . . . . Recycled Matter . | . . . . . . Retrieved Matter . | . . . . . . Retrieved Components 8 | . 8 . . . . Parts Scanalyzed . | . . . . . . Part Schematics Acquired . | . . . . . . Parts Damaged . | . . . . . . Bothacking | -11 -10 -10 -10 -9 -8 ------------ Run | Scr Mat Min Exi Min Mat Used RIF Installer . | . . . . . . Robots Hacked . | . . . . . . Non-combat . | . . . . . . Combat . | . . . . . . Robot Hacks Applied . | . . . . . . Relay Couplers Released 3 | . . . . . 3 Machine Destruction 3 | . . . . . 3 Robots Rewired . | . . . . . . Allies Hacked . | . . . . . . Hacks Repelled . | . . . . . . Allies | -11 -10 -10 -10 -9 -8 -------- Run | Scr Mat Min Exi Min Mat Total Allies 3 | . 1 2 . . . Largest Group 3 | . 1 3 2 1 1 Highest-Rated Group 102 | . 60 102 73 62 91 Highest-Rated Ally 91 | . 60 64 62 62 91 Total Orders . | . . . . . . Ally Attacks 102 | . 13 5 6 . 78 Total Damage 5478 | . 885 154 177 . 4262 Kills 62 | . 16 1 1 . 44 Allies Corrupted . | . . . . . . Allies Melted . | . . . . . . Intel | -11 -10 -10 -10 -9 -8 ------- Run | Scr Mat Min Exi Min Mat Robot Analysis Total . | . . . . . . Derelict Logs Recovered 3 | . . 1 . 2 . Drone Launches . | . . . . . . Drone Recoveries . | . . . . . . Exploration | -11 -10 -10 -10 -9 -8 ------------- Run | Scr Mat Min Exi Min Mat Turns Passed 5246 | 44 1023 589 395 383 2812 Spaces Moved 3339 | 38 814 465 313 358 1351 Core 1 | 1 . . . . . Treads 3 | . . . . . 3 Legs 1895 | . . . 189 358 1348 Wheels 1440 | 37 814 465 124 . . Hover . | . . . . . . Flight . | . . . . . . Fastest Speed 50 | 50 90 105 90 90 90 Average Speed 131 | 87 100 108 102 90 177 Slowest Speed 365 | 90 105 120 180 90 365 Overloaded Moves . | . . . . . . Propulsion Burnouts . | . . . . . . Robots Hopped . | . . . . . . Cave-ins Triggered . | . . . . . . Exploration Rate (%) 67 | 3 96 73 61 80 91 Regions Visited 5 Branch Regions 3 Pre-discovered Areas 3 | . . . . 3 . Known Exits Taken . | . . . . . . Unknown Exits Taken 5 | 1 1 1 1 1 . Scrap Searched 2 | . . . . 2 . Spaces Dug 12 | . . . . . 12 Terrain Destroyed 71 | . 3 . . . 68 Melee . | . . . . . . Projectile 31 | . . . . . 31 AOE 40 | . 3 . . . 37 Terrain Rammed . | . . . . . . Walls Destroyed . | . . . . . . Machines Disabled . | . . . . . . Actions | -11 -10 -10 -10 -9 -8 --------- Run | Scr Mat Min Exi Min Mat Total 4058 | 45 963 543 380 413 1714 Wait 555 | . 107 71 50 49 278 Move 3334 | 37 813 464 312 357 1351 Hop . | . . . . . . Pick Up 35 | 2 11 3 2 2 15 Fast Attach 18 | 6 1 . 3 . 8 Attach 8 | . . . 1 1 6 Detach 3 | . . . . . 3 Swap 10 | . 2 2 . 1 5 Drop 24 | . 3 . 4 . 17 Fire 63 | . 26 3 8 3 23 Melee . | . . . . . . Ram . | . . . . . . Kick 4 | . . . . . 4 Crush 4 | . . . . . 4 Escape Stasis . | . . . . . . Rewire . | . . . . . . Trap . | . . . . . . Miscellaneous . | . . . . . . Route ------- -11/Scrapyard -10/Materials (discovered 4 exits: [*Mat x3] / [*Min]) -10/Mines (discovered 2 exits: [*Mat] / *Exi) -10/Exiles -9/Mines -8/Materials (discovered 3 exits: *Fac x3) History --------- Turn | Location | Event 6 | -11/Scrapyard | Discovered new exit (range 15) 45 | -11/Scrapyard | Entered Materials 217 | -10/Materials | Discovered new exit (range 7) 307 | -10/Materials | Build established: Mutant 349 | -10/Materials | Discovered new exit (range 5) 459 | -10/Materials | Discovered new exit (range 9) 571 | -10/Materials | Discovered new exit (range 12) 1068 | -10/Materials | Entered Mines 1068 | -10/Mines | Accompanied by 1 ally 1107 | -10/Mines | Learned Materials emergency access door positions 1128 | -10/Mines | Received a Rocket Launcher from a helpful Derelict 1219 | -10/Mines | Discovered new exit (range 9) 1437 | -10/Mines | A weapon hastily lodged in a ceiling crevice suddenly fell to the ground 1466 | -10/Mines | Joined a pair of Derelicts in attacking an 0b10 outpost 1632 | -10/Mines | Deemed a non-threat by the Exiles lab entrance 1632 | -10/Mines | Discovered new exit (range 5) 1657 | -10/Mines | Entered Exiles 1657 | -10/Exiles | Accompanied by 2 allies 1687 | -10/Exiles | Met 8R-AWN 1707 | -10/Exiles | Met EX-HEX 1744 | -10/Exiles | Met EX-BIN 1762 | -10/Exiles | Aligned with FarCom system 1763 | -10/Exiles | Given EX-Vault access code 1795 | -10/Exiles | Opened EX-Vault 1807 | -10/Exiles | Found Potential Leg 1811 | -10/Exiles | Found Potential Leg 1814 | -10/Exiles | Found AWS/Autocannon 1816 | -10/Exiles | Found Cloak of Protection 1836 | -10/Exiles | Warned to stay clear of 0b10 Research branches 1842 | -10/Exiles | Exiles lab attacked by MAIN.C 1938 | -10/Exiles | Core integrity fell below 50% 2006 | -10/Exiles | Discovered new exit (range 12) 2052 | -10/Exiles | Stole three prototypes: Potential Leg, Cloak of Protection, AWS/Autocannon 2052 | -10/Exiles | Entered Mines 2052 | -9/Mines | Accompanied by 1 ally 2105 | -9/Mines | Met a Derelict bent on vengeance 2159 | -9/Mines | Assembled infested the area 2164 | -9/Mines | Assisted by a Guerilla fighting off Assembled 2226 | -9/Mines | Learned location of Storage (-7) 2226 | -9/Mines | Learned location of Zion (-6) 2257 | -9/Mines | Found a damaged Exp. Sensor Array with a note attached 2260 | -9/Mines | Found Prototype Device 2365 | -9/Mines | Discovered new exit (range 11) 2435 | -9/Mines | Entered Materials 2435 | -8/Materials | Accompanied by 1 ally 2435 | -8/Materials | Evolved 4 slots: Propulsion x2, Utility x1, Weapon x1 2734 | -8/Materials | Build established: Skirmisher 2890 | -8/Materials | Discovered new exit (range 15) 2917 | -8/Materials | Identified exit to Factory 3205 | -8/Materials | Discovered exit to Factory (range 16) 3930 | -8/Materials | Discovered exit to Factory (range 15) 4035 | -8/Materials | First assault squad dispatched 4972 | -8/Materials | High security lockdown imminent 5052 | -8/Materials | High security lockdown engaged 5180 | -8/Materials | Destroyed 7 combat bots 5229 | -8/Materials | Core integrity fell below 50% 5245 | -8/Materials | Core integrity fell below 20% 5247 | -8/Materials | Core destroyed Last Messages --------------- 05141_ G-47 Trooper destroyed. 05141_ G-50 Soldier destroyed. 05147_ L-31 Rogue destroyed. 05152_ Slug penetrates C-30 ARC. 05153_ C-30 ARC bursts open, deploying its payload. 05153_ G-47 Trooper unfolds itself. 05153_ G-47 Trooper destroyed. 05155_ Chain reaction triggered in Corrupted Lgt. Angular Momentum Engine. 05155_ Destroyed Lgt. Deuterium Engine. 05155_ Destroyed Wheel. 05157_ Slug penetrates Wall. 05159_ G-47 Trooper destroyed. 05159_ Chain reaction triggered in Corrupted Lgt. Nuclear Core. 05159_ I-25 Savior destroyed. 05159_ M-28 Smith destroyed. 05160_ G-50 Soldier suffers critical hit (Blast). 05160_ G-50 Soldier destroyed. 05172_ ALERT: Assault forces dispatched. 05214_ Acquired 42 matter. 05215_ Acquired 3 matter. Map ----- +----------------------------------------------------+ | #??# ???# #? ????????????????????????????# | | ???# ???# #?""????????????????????????????# | | ???# #### # ""????????????????????????????# | | ???# % # "?????????????????????????????# | | ???#^% ^^ + ??????????????????????????????#### | | ???# """ #??????????????????????????????????? | | + "T"^ #?????????????????????????????????#? | | ! # %"^" #?????????????????????????????????# | | ???# ^ #????????????#######??????????????# | | ???# "%% ############## #??????????????# | | ???# " ![[ #??????????????# | | ???# % ![ % T #??????????????# | | ???# [[ #?????########## | | ???# ##########+########## #????# ## | | ???# %# # ! #???## #????# """ #? | | ???#% # """ # #????#! !#??# """ ### | | ???# #%" " #! "" #????#! !#??# """ # | | ???#!*%#% "" # T" #????##!!!!##??# """ + | | ???#!!%+%* # ! "" #??????#####???# # | | ???#%=%% %%!!! # #??????????????# = ### | | ??##!%%# !!! ########??????????????# # | | ?##"= /! !!! #?????????????????????# g # " | | ##""* %# #?????????????????????###+###### " | | " =%#" ! [!# #??????????????###????# #??# | | / " %]] %= %######################### ###### | | #]/= %!!%=%=%%!%%%%%% @ %![*% | | " #! ! [ =%%%###################### ##+### | | " [+!%!## = =!*= ! #?????????# # ? | | " #!=%%### % #????????####/### | | #%<=# ## " """"" [#????????# # | | # =%#### """"""""" #????????# # | | #####??# # """ """ #????????# + | | #####"##### # *#????????# # | | + ###############????????# # | | ###########+#####???????????????????# ###### | | #??????# ] #???????????????????########????? | | #??????# """ #???????????????????????????????? | | #??????# """ ] #???????????????????????????????? | | #??????# """ #???????????????????????????????? | | ##??????# #???????????????????????????????? | | ????????# """ !#???????????????????????????????? | | ????????# """ = #???????????????????????????????? | | ????????# """ #???????????????????????????????? | | ??????????? ! #???????????????????????????????? | | ???????????#######???????????????????????????????? | | ?????????????????????????????????????????????????? | | | | | | | | | +----------------------------------------------------+ Best States ------------- Heat Dissipation 31 Energy Generation 15 Energy Capacity 250 Matter Stores 300 Matter Capacity 300 Sight Range 16 Terrain Scan Density 10 Armor Coverage 225 Resistance: EM 15 Evasion (%) 57 Recoil Reduction 2 Item Schematics ----------------- None Robot Schematics ------------------ None Fabricated ------------ Nothing Alien Tech Used ----------------- None Achievements -------------- None Challenges ------------ None Player 2 | -11 -10 -10 -10 -9 -8 ---------- Run | Scr Mat Min Exi Min Mat Slots Evolved 4 | . . . . 4 . Power . | . . . . . . Propulsion 1 | . . . . 1 . Utility 2 | . . . . 2 . Weapon 1 | . . . . 1 . Parts Attached 52 | . 12 7 . . 33 Parts Lost 12 | . . . . . 12 Damage Taken 2710 | . 236 85 73 . 2316 Core 458 | . 63 10 . . 385 Player 2/Cogmind (%) 65 | . 75 71 . . 68 Absorbed by Shields . | . . . . . . Damage Inflicted 5436 | . 885 112 177 . 4262 Player 2/Cogmind (%) 31 | . 63 62 33 . 28 Combat Hostiles Destroyed 48 | . 13 . 1 . 34 Player 2/Cogmind (%) 44 | . 76 . 14 . 43 Game ------ Seed MissileSiegeAmplifier Manual? 0 Play Time 00:39:43 Cumulative 1086.6 hours Start 2021.08.24 @ 04:00:25 End 2021.08.24 @ 04:43:54 Sessions 1 Manual Loads 0 Difficulty Rogue Special Mode AFD2020/Player2 Game No. 680 Rogue 680 Adventurer 0 Explorer 0 Win Type - Total 18 Types 10/1/4/3/0/0/0/0/0 Lore% 88 Gallery% 90 Achievement% 81 Wizard Run 0 Options --------- ASCII 0 Keyboard 0 Movement Mouse Keybinds 0 Fullscreen 1 Font 24/Smallcaps Map View 76x50 Tactical HUD 1 Map Filters NONE Filters NONE Steam 1 RUN: e4555371-8432-4262-908d-a22956f13f89